bitfinex/quotes_SOLUSD_20240906
["timestamp","ask_amount","ask_price","bid_price","bid_amount"]
[1725638389348,1.94725259,128.41,128.34,45.0]
[1725638389557,20.0,128.42,128.33,6.1587]
[1725638389947,20.0,128.42,128.33,7.71656186]
[1725638390152,20.0,128.42,128.34,45.0]
[1725638390369,20.0,128.42,128.35,1.55778863]
[1725638390736,20.0,128.42,128.34,45.0]
[1725638391158,21.34379039,128.42,128.34,45.0]
[1725638391567,21.34379039,128.42,128.35,1.55759137]
[1725638392371,21.34379039,128.42,128.34,45.0]
[1725638396043,21.34379039,128.42,128.35,1.55759172]
[1725638396248,21.34379039,128.42,128.34,46.55759365]
[1725638396949,21.34379039,128.42,128.34,46.55759445]
[1725638397269,1.34379039,128.42,128.35,35.00037458]
[1725638397475,20.0,128.42,128.36,46.55740873]
[1725638397968,15.9128,128.43,128.37,35.00037458]
[1725638398267,15.9128,128.43,128.36,45.0]
[1725638399047,15.9128,128.43,128.33,41.15907458]
[1725638399253,1.94710022,128.42,128.34,45.0]
[1725638399569,1.94703833,128.42,128.33,41.15907458]
[1725638399770,20.0,128.42,128.33,41.15907458]
[1725638400737,20.0,128.42,128.34,1.55770273]
[1725638400872,20.0,128.42,128.32,16.066]
[1725638401074,20.0,128.42,128.32,51.06637458]
[1725638401881,20.0,128.42,128.33,45.0]
[1725638404584,20.0,128.42,128.34,35.00037458]
[1725638404767,15.9128,128.43,128.36,35.00037458]
[1725638404971,15.9128,128.43,128.37,45.0]
[1725638405269,15.9128,128.43,128.34,35.00037458]
[1725638405481,15.9128,128.43,128.32,35.00037458]
[1725638405684,15.9128,128.43,128.33,46.55787586]
[1725638406190,20.0,128.42,128.36,35.00037458]
[1725638406362,20.0,128.42,128.34,35.00037458]
[1725638406560,20.0,128.42,128.33,45.0]
[1725638406786,20.0,128.42,128.32,35.00037458]
[1725638406978,6.1472,128.41,128.3,415.20037458]
[1725638407177,82.18317708,128.4,128.28,437.73027458]
[1725638407493,21.8577,128.38,128.28,35.00037458]
[1725638407691,20.0,128.37,128.28,35.00037458]
[1725638408692,20.0,128.37,128.24,10.16451438]
[1725638408693,16.2484,128.37,128.26,1.55833519]
[1725638408887,87.4904,128.36,128.24,35.00037458]
[1725638409102,87.4904,128.36,128.21,22.5195]
[1725638409103,42.4904,128.36,128.22,1.55885722]
[1725638409270,42.4904,128.36,128.25,35.00037458]
[1725638409470,42.4904,128.36,128.26,1.55852562]
[1725638409665,42.4904,128.36,128.27,1.55843999]
[1725638409872,22.4904,128.36,128.27,36.55881457]
[1725638410180,22.4904,128.36,128.27,59.03291457]
[1725638410388,22.4904,128.36,128.28,45.0]
[1725638410691,22.4904,128.36,128.28,1.55829634]
[1725638410875,22.4904,128.36,128.25,35.00037458]
[1725638411076,22.4904,128.36,128.23,21.3179]
[1725638411077,20.0,128.35,128.26,1.55863745]
[1725638411285,45.0,128.34,128.24,1.11856742]
[1725638411476,20.0,128.35,128.24,20.0]
[1725638411792,20.0,128.35,128.25,1.55866041]
[1725638412105,20.0,128.35,128.24,20.0]
[1725638412390,20.0,128.35,128.25,35.00037458]
[1725638412567,22.4904,128.36,128.27,35.00037458]
[1725638412771,22.4904,128.36,128.25,51.55885514]
[1725638412772,22.4904,128.36,128.29,35.00037458]
[1725638412992,22.4904,128.36,128.27,35.00037458]
[1725638413272,22.4904,128.36,128.28,45.0]
[1725638413467,22.4904,128.36,128.29,1.55844247]
[1725638413666,22.4904,128.36,128.3,1.55839436]
[1725638413895,22.4904,128.36,128.3,380.2]
[1725638414095,22.4904,128.36,128.25,35.00037458]
[1725638414393,45.0,128.35,128.25,1.5586803]
[1725638414782,45.0,128.34,128.25,1.5586803]
[1725638414984,45.0,128.35,128.25,1.5586803]
[1725638415178,15.454,128.34,128.25,1.5586803]
[1725638415380,15.454,128.34,128.25,380.2]
[1725638415581,15.1885,128.32,128.25,380.2]
[1725638415792,45.0,128.31,128.25,380.2]
[1725638415997,43.80286651,128.3,128.25,380.2]
[1725638416199,46.94940409,128.29,128.25,380.2]
[1725638416381,15.1998,128.27,128.25,380.2]
[1725638416582,20.0,128.26,128.25,380.2]
[1725638417382,71.0427,128.26,128.16,144.69087403]
[1725638417684,45.0,128.25,128.16,144.69087403]
[1725638417884,46.34578427,128.25,128.16,144.69087403]
[1725638418104,21.94989111,128.24,128.16,144.69087403]
[1725638418300,20.0,128.24,128.16,144.69087403]
[1725638419299,1.94987954,128.23,128.16,144.69087403]
[1725638419502,1.94987954,128.23,128.11,0.8413169]
[1725638419503,6.1937,128.22,128.11,0.8413169]
[1725638419806,66.95059188,128.21,128.11,0.8413169]
[1725638419989,1.95057277,128.2,128.11,0.8413169]
[1725638421705,65.0,128.21,128.11,0.8413169]
[1725638421706,66.95088161,128.21,128.11,0.8413169]
[1725638421904,65.0,128.21,128.11,44.79088208]
[1725638422108,8.06641137,128.2,128.11,0.8413169]
[1725638422286,45.0,128.19,128.11,0.8413169]
[1725638422486,1.95152575,128.18,128.11,0.8413169]
[1725638422683,21.95152575,128.18,128.11,0.8413169]
[1725638423001,20.0,128.18,128.11,0.8413169]
[1725638423379,1.9508628,128.17,128.11,0.8413169]
[1725638423587,45.0,128.17,128.11,0.8413169]
[1725638423789,21.95124932,128.16,128.11,0.8413169]
[1725638424306,45.0,128.15,128.11,0.8413169]
[1725638424508,26.0923,128.14,128.11,0.8413169]
[1725638424808,28.04375996,128.14,128.11,0.8413169]
[1725638425201,26.0923,128.14,128.11,0.8413169]
[1725638426517,6.3782,128.18,128.11,0.8413169]
[1725638428607,20.0,128.17,128.11,44.79088208]
[1725638428810,20.0,128.17,128.12,45.0]
[1725638430487,6.3238,128.22,128.12,46.56042041]
[1725638430712,6.3238,128.22,128.15,43.94956518]
[1725638431010,16.40918427,128.25,128.16,1.5600886]
[1725638431210,16.40918427,128.25,128.16,45.0]
[1725638431516,1.34578427,128.25,128.17,45.50949278]
[1725638431690,1.34578427,128.25,128.19,43.94956518]
[1725638432004,15.0634,128.29,128.2,1.55946468]
[1725638432207,1.35014664,128.29,128.21,45.50894813]
[1725638432591,1.35014664,128.29,128.2,45.0]
[1725638433315,6.2337,128.3,128.21,43.94956518]
[1725638433511,6.2337,128.3,128.22,45.0]
[1725638433693,6.2337,128.3,128.23,1.55902279]
[1725638434295,6.2337,128.3,128.23,45.50858797]
[1725638434495,6.2337,128.3,128.24,45.0]
[1725638435603,20.0,128.29,128.24,45.0]
[1725638436712,20.0,128.29,128.25,43.94956518]
[1725638437027,16.4132644,128.33,128.24,46.5588509]
[1725638437028,20.0,128.32,128.24,46.5588509]
[1725638437319,21.3498644,128.33,128.24,46.5588509]
[1725638437892,21.3498644,128.33,128.24,45.0]
[1725638437893,1.3498644,128.33,128.24,45.0]
[1725638438199,1.34956779,128.33,128.24,45.0]
[1725638439318,21.34956779,128.33,128.24,45.0]
[1725638439497,20.0,128.33,128.24,45.0]
[1725638439699,21.35013969,128.33,128.24,45.0]
[1725638440120,1.94850301,128.32,128.24,45.0]
[1725638440290,1.94850301,128.32,128.21,43.94956518]
[1725638440495,46.94899709,128.32,128.19,43.94956518]
[1725638440693,20.0,128.31,128.19,43.94956518]
[1725638440909,46.94932395,128.3,128.19,43.94956518]
[1725638441198,20.0,128.29,128.2,1.55940794]
[1725638441514,20.0,128.29,128.19,43.94956518]
[1725638441515,1.94910159,128.28,128.19,43.94956518]
[1725638441695,6.6012,128.27,128.15,298.34956518]
[1725638441895,21.94979419,128.26,128.15,43.94956518]
[1725638442116,45.0,128.25,128.15,43.94956518]
[1725638442321,20.0,128.24,128.14,22.99235377]
[1725638442518,20.0,128.24,128.14,21.4323]
[1725638443124,45.0,128.23,128.14,15.1626]
[1725638443321,20.0,128.22,128.14,15.1626]
[1725638445221,20.0,128.22,128.11,2.40161471]
[1725638445524,20.0,128.22,128.11,22.40161471]
[1725638445903,45.0,128.21,128.11,0.8413169]
[1725638446110,6.3421,128.19,128.11,0.8413169]
[1725638446308,20.0,128.18,128.11,0.8413169]
[1725638447326,20.0,128.18,128.11,2.40194161]
[1725638447624,20.0,128.18,128.11,0.8413169]
[1725638448004,20.0,128.18,128.11,47.40179531]
[1725638448307,20.0,128.18,128.11,45.8413169]
[1725638449805,20.0,128.18,128.11,47.40176863]
[1725638450112,20.0,128.18,128.11,45.8413169]
[1725638450313,20.0,128.18,128.11,47.40177143]
[1725638451017,22.82562139,128.18,128.11,0.8413169]
[1725638452028,1.9508907,128.17,128.11,0.8413169]
[1725638452234,46.9508907,128.17,128.11,0.8413169]
[1725638452420,20.0,128.16,128.11,0.8413169]
[1725638453130,22.82562139,128.18,128.11,0.8413169]
[1725638453428,20.0,128.18,128.11,0.8413169]
[1725638453810,6.3421,128.19,128.11,0.8413169]
[1725638454011,9.24636295,128.19,128.11,0.8413169]
[1725638454211,9.24636295,128.19,128.12,1.56027962]
[1725638455021,9.24636295,128.19,128.11,0.8413169]
[1725638456224,66.95101681,128.18,128.11,0.8413169]
[1725638456405,1.95109862,128.17,128.11,0.8413169]
[1725638456609,65.0,128.18,128.11,0.8413169]
[1725638456811,66.95109842,128.18,128.11,0.8413169]
[1725638457514,65.0,128.18,128.11,0.8413169]
[1725638457719,20.0,128.18,128.11,0.8413169]
[1725638459741,45.0,128.17,128.11,0.8413169]
[1725638459907,20.0,128.16,128.11,0.8413169]
[1725638461737,3.3013798,128.17,128.11,0.8413169]
[1725638462034,23.3013798,128.17,128.11,0.8413169]
[1725638462222,21.3501698,128.17,128.11,0.8413169]
[1725638462618,1.3501698,128.17,128.11,0.8413169]
[1725638463033,20.0,128.18,128.11,2.40210819]
[1725638463511,20.0,128.18,128.11,0.8413169]
[1725638464621,20.0,128.18,128.12,15.2003]
[1725638464836,4.25540099,128.19,128.12,15.2003]
[1725638465223,6.2105,128.22,128.13,46.56036103]
[1725638465537,1.3506613,128.24,128.16,43.94956518]
[1725638465840,6.359,128.26,128.18,21.3723]
[1725638466044,15.0634,128.28,128.19,1.55951436]
[1725638466216,1.35023173,128.27,128.19,46.55951436]
[1725638466418,2.93695741,128.3,128.2,43.94956518]
[1725638466646,2.93695741,128.3,128.19,46.55951436]
[1725638466647,1.34995473,128.29,128.21,1.55921868]
[1725638466838,1.34995473,128.29,128.19,45.0]
[1725638467529,1.94923579,128.28,128.19,45.0]
[1725638469038,1.34995473,128.29,128.19,1.55972917]
[1725638469540,1.94916727,128.28,128.18,21.3723]
[1725638469747,1.94916727,128.28,128.19,45.0]
[1725638470047,1.34995473,128.29,128.19,45.0]
[1725638470342,1.34995473,128.29,128.18,21.3723]
[1725638470343,6.12264043,128.29,128.18,15.3525]
[1725638470522,20.0,128.28,128.18,15.3525]
[1725638470844,45.0,128.27,128.18,15.3525]
[1725638471030,1.94967107,128.26,128.18,15.3525]
[1725638471221,21.94967107,128.26,128.18,15.3525]
[1725638471427,20.0,128.26,128.18,15.3525]
[1725638471839,20.0,128.28,128.19,1.55960723]
[1725638472023,4.17322575,128.29,128.19,46.55960723]
[1725638473345,4.17322575,128.29,128.18,15.3525]
[1725638473544,26.12274618,128.29,128.18,15.3525]
[1725638473743,45.0,128.28,128.18,15.3525]
[1725638474046,20.0,128.27,128.18,15.3525]
[1725638474941,1.9495076,128.26,128.18,15.3525]
[1725638475336,20.0,128.27,128.18,15.3525]
[1725638475647,4.17322575,128.29,128.19,1.55931684]
[1725638476346,4.17322575,128.29,128.19,46.55931684]
[1725638477236,4.17322575,128.29,128.19,45.0]
[1725638477434,4.17322575,128.29,128.2,1.55929945]
[1725638478246,4.17322575,128.29,128.19,45.0]
[1725638479343,24.17322575,128.29,128.2,7.78715905]
[1725638479647,21.94889996,128.28,128.18,15.3525]
[1725638479839,1.94969187,128.27,128.18,15.3525]
[1725638480026,1.94967874,128.26,128.18,15.3525]
[1725638480226,46.94967874,128.26,128.18,15.3525]
[1725638480425,20.0,128.25,128.18,15.3525]
[1725638480653,1.94987933,128.24,128.18,15.3525]
[1725638480854,1.95007923,128.23,128.15,16.2428]
[1725638481154,66.95007923,128.23,128.15,16.2428]
[1725638481538,20.0,128.23,128.16,1.56004593]
[1725638481941,20.0,128.24,128.15,16.2428]
[1725638482335,20.0,128.24,128.16,45.0]
[1725638482536,20.0,128.24,128.17,1.55969475]
[1725638482734,20.0,128.24,128.16,45.0]
[1725638482735,20.0,128.24,128.16,88.94956518]
[1725638482942,2.84962368,128.25,128.16,88.94956518]
[1725638483152,20.0,128.27,128.17,1.55957054]
[1725638483456,20.0,128.27,128.18,1.55956072]
[1725638483751,6.5143,128.28,128.19,1.55956069]
[1725638483962,6.5143,128.28,128.16,88.94956518]
[1725638484642,6.5143,128.28,128.17,1.55945007]
[1725638484945,6.5143,128.28,128.16,88.94956518]
[1725638485139,9.4008718,128.28,128.16,90.50884591]
[1725638485337,2.8865718,128.28,128.16,90.50884591]
[1725638485554,1.34995473,128.29,128.2,60.55296518]
[1725638485739,1.34995473,128.29,128.21,46.55904899]
[1725638485932,2.88146762,128.3,128.21,46.55904899]
[1725638486128,6.1385,128.34,128.21,46.55904899]
[1725638486129,1.35034542,128.32,128.21,46.55904899]
[1725638486638,1.35034542,128.32,128.22,43.94956518]
[1725638486835,6.1385,128.34,128.23,46.55886276]
[1725638487044,2.89906745,128.34,128.25,6.2139]
[1725638487257,5.84465503,128.37,128.26,45.0]
[1725638487438,7.7955,128.28,128.26,45.0]
[1725638488052,19.486,128.3,128.25,6.2139]
[1725638488264,7.7966,128.26,128.25,6.2139]
[1725638489839,7.7962,128.27,128.25,6.2139]
[1725638490040,7.7972,128.25,128.24,16.6034]
[1725638490260,20.0,128.29,128.22,6.0865]
[1725638490459,7.7984,128.23,128.22,6.0865]
[1725638490771,19.4909,128.27,128.22,6.0865]
[1725638490772,7.7979,128.24,128.22,6.0865]
[1725638491054,7.7984,128.23,128.22,6.0865]
[1725638491438,7.799,128.22,128.21,16.1441]
[1725638491844,1.94940053,128.27,128.19,6.1789]
[1725638492048,7.8002,128.21,128.18,18.17128303]
[1725638492246,7.8002,128.21,128.18,16.6115]
[1725638492451,7.7992,128.22,128.18,16.6115]
[1725638492762,7.7997,128.21,128.18,16.6115]
[1725638493160,7.7983,128.24,128.19,7.8004]
[1725638493457,7.7974,128.25,128.19,19.5015]
[1725638493642,20.0,128.28,128.22,7.7988]
[1725638493839,7.7964,128.27,128.23,6.5208]
[1725638494053,7.7964,128.27,128.25,15.4444]
[1725638494252,7.7955,128.28,128.25,15.4444]
[1725638494451,7.7953,128.29,128.25,15.4444]
[1725638494766,4.17769179,128.34,128.26,52.7961]
[1725638494932,4.17769179,128.34,128.26,54.35468985]
[1725638495358,7.7944,128.3,128.26,46.55858985]
[1725638495738,2.82797439,128.34,128.27,1.55860049]
[1725638495946,7.7934,128.32,128.27,9.35410049]
[1725638496142,7.7934,128.32,128.28,45.0]
[1725638496548,7.7934,128.32,128.29,1.55848277]
[1725638496758,7.793,128.32,128.28,54.35375014]
[1725638496939,2.83203806,128.35,128.28,45.0]
[1725638497271,7.7947,128.3,128.25,23.2412]
[1725638497562,7.7947,128.3,128.26,45.0]
[1725638497735,7.7948,128.29,128.25,24.79989808]
[1725638497944,19.4798,128.34,128.25,15.4444]
[1725638498251,7.7953,128.29,128.25,15.4444]
[1725638499156,19.4798,128.34,128.26,7.7961]
[1725638499453,19.4798,128.34,128.25,15.4444]
[1725638499454,7.7943,128.3,128.25,23.2414]
[1725638499655,7.7943,128.3,128.26,45.0]
[1725638499864,7.7936,128.31,128.26,52.7961]
[1725638500041,7.7931,128.32,128.27,7.796]
[1725638500363,7.7931,128.32,128.28,45.0]
[1725638500539,4.2692994,128.37,128.28,109.99615295]
[1725638500540,7.7924,128.33,128.28,109.99615295]
[1725638501061,7.7924,128.33,128.29,7.7947]
[1725638501263,23.7443994,128.37,128.28,109.99615295]
[1725638501264,7.7932,128.32,128.28,117.79135295]
[1725638501755,7.7932,128.32,128.28,64.4882]
[1725638502070,7.7924,128.33,128.28,73.84172832]
[1725638502849,7.7924,128.33,128.28,117.7912935]
[1725638503046,4.2692994,128.37,128.31,6.5636]
[1725638503367,7.7906,128.36,128.32,61.2103]
[1725638504062,7.7889,128.39,128.34,7.7912]
[1725638504264,7.7894,128.38,128.35,1.5576828]
[1725638504448,1.35031028,128.42,128.35,1.5576828]
[1725638504449,1.35031028,128.42,128.36,1.55769736]
[1725638504780,1.94702485,128.46,128.35,46.11627554]
[1725638505069,1.34984751,128.43,128.35,52.791]
[1725638505365,19.4633,128.45,128.35,52.791]
[1725638505558,7.7883,128.4,128.36,7.7905]
[1725638505760,7.7876,128.41,128.37,52.7898]
[1725638506140,7.7876,128.41,128.37,54.34720751]
[1725638506565,7.787,128.42,128.38,7.7892]
[1725638506977,7.7877,128.41,128.37,54.34711259]
[1725638507147,7.787,128.42,128.37,52.7898]
[1725638507463,7.7865,128.43,128.39,24.0723]
[1725638507654,1.34861857,128.46,128.39,16.2836]
[1725638507846,1.34861857,128.46,128.4,1.55709667]
[1725638508072,34.5168,128.52,128.41,19.4681]
[1725638508073,15.0634,128.52,128.41,19.4681]
[1725638508271,7.7852,128.45,128.4,9.34487774]
[1725638508578,7.7847,128.46,128.41,52.7872]
[1725638508881,7.784,128.47,128.42,9.34367051]
[1725638509188,7.7845,128.46,128.42,1.55687051]
[1725638509361,7.7845,128.46,128.41,52.7875]
[1725638509669,22.31847348,128.5,128.41,45.0]
[1725638509850,7.7846,128.46,128.42,1.55670799]
[1725638510046,7.784,128.47,128.42,9.34350799]
[1725638510268,7.784,128.47,128.43,45.0]
[1725638510469,7.7839,128.47,128.43,45.0]
[1725638510766,22.31847348,128.5,128.43,46.5566539]
[1725638510767,7.7834,128.48,128.43,46.5566539]
[1725638510944,2.86237348,128.5,128.44,7.7857]
[1725638511265,19.4512,128.53,128.44,21.01987022]
[1725638511740,19.4512,128.53,128.44,19.4635]
[1725638511946,7.7827,128.49,128.44,27.2489]
[1725638512145,7.7827,128.49,128.44,28.80536603]
[1725638512371,7.7827,128.49,128.44,27.2489]
[1725638512566,7.7833,128.48,128.44,19.4635]
[1725638512865,22.39685517,128.53,128.44,19.4635]
[1725638513170,65.0,128.52,128.43,45.0]
[1725638513377,65.0,128.52,128.42,45.0]
[1725638513672,65.0,128.52,128.42,46.55663275]
[1725638514050,65.0,128.52,128.42,45.0]
[1725638514353,7.7844,128.47,128.42,45.0]
[1725638515072,7.7844,128.47,128.43,7.7861]
[1725638515244,19.4542,128.51,128.42,52.7867]
[1725638515447,7.7847,128.46,128.42,52.7867]
[1725638515666,7.7847,128.46,128.42,45.0]
[1725638515876,19.4575,128.49,128.4,7.788]
[1725638516171,7.7852,128.45,128.4,7.788]
[1725638516354,7.7852,128.45,128.41,7.7873]
[1725638516701,7.7852,128.45,128.4,27.2577]
[1725638516865,7.7859,128.44,128.4,27.2577]
[1725638517047,7.7859,128.44,128.4,28.81465384]
[1725638517368,7.7859,128.44,128.4,27.2577]
[1725638518481,7.7855,128.45,128.4,28.81474215]
[1725638518846,7.7855,128.45,128.41,45.0]
[1725638519074,7.7855,128.45,128.41,52.7872]
[1725638520375,7.7858,128.44,128.41,45.0]
[1725638520582,7.7853,128.45,128.41,45.0]
[1725638520883,7.7865,128.43,128.39,25.62905707]
[1725638521064,1.94607134,128.51,128.39,25.62905707]
[1725638521065,20.0,128.51,128.4,46.5568833]
[1725638521378,38.893,128.56,128.43,19.4656]
[1725638521565,7.7828,128.49,128.45,15.8881]
[1725638521962,7.7835,128.48,128.45,15.8881]
[1725638522360,7.7842,128.47,128.45,15.8881]
[1725638522560,21.39944759,128.51,128.45,15.8881]
[1725638522769,17.00922031,128.5,128.38,29.1954]
[1725638522974,7.7879,128.41,128.38,21.4063]
[1725638523280,7.7863,128.43,128.39,7.7882]
[1725638523459,1.94632738,128.48,128.38,40.8795]
[1725638523651,7.7871,128.42,128.38,40.8795]
[1725638523993,1.94632738,128.48,128.35,25.7486]
[1725638524155,7.789,128.39,128.35,25.7486]
[1725638525155,7.789,128.39,128.35,19.4768]
[1725638525780,6.0253,128.47,128.37,19.4746]
[1725638525961,7.7881,128.4,128.37,19.4746]
[1725638526164,19.4646,128.44,128.37,27.2644]
[1725638526165,7.7876,128.41,128.37,27.2644]
[1725638526369,19.4646,128.44,128.37,27.2644]
[1725638526370,7.7869,128.42,128.38,7.7893]
[1725638526698,28.42111227,128.47,128.39,64.4713]
[1725638526858,28.42111227,128.47,128.4,23.92520881]
[1725638526859,7.7843,128.47,128.4,23.92520881]
[1725638527058,19.4564,128.5,128.41,64.4679]
[1725638527381,7.7859,128.44,128.4,30.1563]
[1725638527880,7.7851,128.45,128.4,31.71303079]
[1725638528087,22.31021814,128.5,128.4,31.71303079]
[1725638528088,7.7846,128.46,128.41,52.7874]
[1725638529280,7.784,128.47,128.43,7.7863]
[1725638529484,22.31021814,128.5,128.43,9.34296221]
[1725638529485,7.7833,128.48,128.43,9.34296221]
[1725638529690,7.7833,128.48,128.44,45.0]
[1725638529864,7.7833,128.48,128.43,9.34285174]
[1725638530065,7.784,128.47,128.42,28.81012502]
[1725638530369,7.784,128.47,128.43,45.0]
[1725638530569,7.784,128.47,128.42,27.2535]
[1725638530964,7.7845,128.46,128.42,27.2535]
[1725638531168,7.784,128.47,128.42,27.2535]
[1725638531361,22.35131361,128.51,128.42,19.4667]
[1725638531562,7.7855,128.45,128.4,22.3683]
[1725638531877,7.7852,128.45,128.4,23.92528233]
[1725638532067,7.7852,128.45,128.4,31.71338233]
[1725638532269,7.7865,128.43,128.4,15.7204]
[1725638532495,19.4605,128.47,128.37,14.0867]
[1725638532496,1.94652381,128.46,128.37,14.0867]
[1725638532792,1.94665234,128.45,128.37,14.0867]
[1725638533169,7.7871,128.42,128.38,7.789]
[1725638533700,7.7876,128.41,128.37,14.0866]
[1725638534578,7.7871,128.42,128.38,7.7892]
[1725638534984,7.7875,128.41,128.37,14.0867]
[1725638535372,7.7871,128.42,128.37,14.0867]
[1725638535693,7.7871,128.42,128.37,14.0865]
[1725638535868,7.7875,128.41,128.37,14.0865]
[1725638536770,1.94675372,128.44,128.36,15.6067]
[1725638536975,7.7918,128.34,128.33,15.247]
[1725638537180,7.7918,128.34,128.31,6.4624]
[1725638537795,7.7925,128.33,128.3,15.152]
[1725638538094,1.94774445,128.42,128.27,15.5316]
[1725638538095,20.0,128.32,128.27,15.5316]
[1725638538279,7.7954,128.28,128.27,15.5316]
[1725638538689,7.7954,128.28,128.24,6.4213]
[1725638539509,7.7954,128.28,128.24,14.2191]
[1725638539793,19.485,128.31,128.24,14.2191]
[1725638539794,7.7949,128.29,128.24,14.2191]
[1725638540184,7.7943,128.3,128.25,45.0]
[1725638540384,7.7937,128.31,128.27,7.796]
[1725638540584,7.7937,128.31,128.26,9.35526785]
[1725638540902,7.7937,128.31,128.27,45.0]
[1725638541198,7.7943,128.3,128.25,7.7971]
[1725638541572,7.7943,128.3,128.25,9.35586964]
[1725638542296,1.34895507,128.31,128.26,64.4905]
[1725638542505,1.34895507,128.31,128.27,1.55861316]
[1725638542796,1.34895507,128.31,128.27,7.7959]
[1725638543009,9.14255507,128.31,128.26,73.84561316]
[1725638543210,7.7943,128.3,128.26,73.84561316]
[1725638543414,1.34895507,128.31,128.27,7.7959]
[1725638543598,1.34895507,128.31,128.28,7.7952]
[1725638543800,7.7925,128.33,128.29,52.7947]
[1725638543989,7.7925,128.33,128.28,7.7953]
[1725638544190,1.34864951,128.34,128.28,7.7953]
[1725638544191,9.14054951,128.34,128.29,54.35310344]
[1725638545008,1.34864951,128.34,128.29,45.0]
[1725638545307,1.34864951,128.34,128.3,19.4847]
[1725638545712,9.14084951,128.34,128.3,19.4847]
[1725638546293,1.94788979,128.33,128.27,19.4898]
[1725638546618,1.34864951,128.34,128.24,6.4213]
[1725638546619,7.7942,128.3,128.26,7.7966]
[1725638548196,7.7938,128.31,128.26,7.7966]
[1725638548417,7.7929,128.33,128.24,6.4213]
[1725638548710,7.7935,128.32,128.28,19.4882]
[1725638548915,7.7932,128.32,128.27,7.7954]
[1725638549225,7.7932,128.32,128.25,45.0]
[1725638549421,7.7936,128.31,128.27,19.4897]
[1725638550008,7.7936,128.31,128.27,27.2853]
[1725638550897,1.34864951,128.34,128.25,45.0]
[1725638550898,19.4813,128.33,128.25,45.0]
[1725638551098,7.7944,128.3,128.25,52.7968]
[1725638551395,7.7944,128.3,128.26,7.7965]
[1725638551706,7.7938,128.31,128.27,7.796]
[1725638552016,27.7931,128.32,128.27,7.796]
[1725638552207,27.7931,128.32,128.28,7.7953]
[1725638552609,9.14054951,128.34,128.3,7.7941]
[1725638552813,9.14054951,128.34,128.28,19.4883]
[1725638552814,1.34864951,128.34,128.28,19.4883]
[1725638552999,7.7932,128.32,128.28,19.4883]
[1725638553324,7.7932,128.32,128.28,27.2837]
[1725638554206,1.34864951,128.34,128.32,19.4818]
[1725638554415,1.34864951,128.34,128.31,7.7935]
[1725638554728,1.34864951,128.34,128.29,19.4857]
[1725638555101,7.7948,128.29,128.24,14.2187]
[1725638555419,7.7948,128.29,128.22,43.94956518]
[1725638555420,7.7947,128.3,128.25,7.7971]
[1725638555607,7.7955,128.28,128.22,38.9941]
[1725638555808,7.7955,128.28,128.23,23.3296]
[1725638556011,27.795,128.29,128.24,7.7975]
[1725638556215,20.0,128.29,128.24,19.4942]
[1725638556517,7.7947,128.3,128.25,7.7967]
[1725638556725,27.7947,128.3,128.25,7.7967]
[1725638557122,20.0,128.3,128.24,27.2919]
[1725638557618,27.7943,128.3,128.25,7.7971]
[1725638558925,7.7951,128.29,128.24,27.2918]
[1725638559435,7.7964,128.27,128.23,15.5316]
[1725638559728,7.7964,128.27,128.23,23.33]
[1725638561121,7.7973,128.25,128.21,27.2975]
[1725638561831,7.7969,128.26,128.21,27.2975]
[1725638561996,1.94914931,128.29,128.21,27.2975]
[1725638561997,7.7973,128.25,128.21,27.2975]
[1725638562202,7.7986,128.23,128.19,24.2956]
[1725638562539,19.4923,128.26,128.19,16.4949]
[1725638562823,7.7985,128.23,128.19,24.2952]
[1725638563325,19.4923,128.26,128.19,16.4949]
[1725638563518,20.0,128.25,128.19,16.4949]
[1725638563718,7.798,128.24,128.19,24.2958]
[1725638563906,7.798,128.24,128.2,7.8002]